bitfinex-derivatives/quotes_ETHF0:USTF0_20230702
["timestamp","ask_amount","ask_price","bid_price","bid_amount"]
[1688265769542,9.65631225,1923.5,1923.4,0.0047466]
[1688265769944,14.83581225,1923.5,1923.4,0.0047466]
[1688265770833,14.83581225,1923.5,1923.2,5.66302048]
[1688265771140,0.312,1923.3,1923.2,5.66302048]
[1688265771534,1.75808442,1923.3,1923.2,5.6677849]
[1688265774933,1.47136807,1923.3,1923.2,5.6677849]
[1688265775733,1.75808442,1923.3,1923.2,5.6677849]
[1688265790857,1.47136807,1923.3,1923.2,5.6677849]
[1688265797458,1.75808442,1923.3,1923.2,5.6677849]
[1688265798160,1.47136807,1923.3,1923.2,5.6677849]
[1688265802165,1.47136807,1923.3,1923.2,10.3497849]
[1688265807562,1.15936807,1923.3,1923.2,10.3497849]
[1688265807872,0.78,1923.4,1923.2,10.3497849]
[1688265808062,1.15906784,1923.3,1923.2,10.3497849]
[1688265808364,0.78,1923.4,1923.2,10.3497849]
[1688265808567,1.15906369,1923.3,1923.2,10.3497849]
[1688265808865,0.312,1923.3,1923.2,10.3497849]
[1688265809053,1.47105958,1923.3,1923.2,10.3497849]
[1688265810269,1.75777593,1923.3,1923.2,10.3497849]
[1688265810967,0.31199,1923.4,1923.3,0.104]
[1688265811159,0.31199,1923.4,1923.3,4.994]
[1688265811664,0.31199,1923.4,1923.3,4.99858028]
[1688265813262,0.59870635,1923.4,1923.3,4.99858028]
[1688265815967,0.31199,1923.4,1923.3,4.99858028]
[1688265818468,1.18075208,1923.4,1923.3,4.99858028]
[1688265819867,1.46746843,1923.4,1923.3,4.99858028]
[1688265820665,1.18075208,1923.4,1923.3,4.99858028]
[1688265824465,0.86876208,1923.4,1923.3,5.10258028]
[1688265824864,0.31197,1923.5,1923.3,5.10258028]
[1688265825063,0.31197,1923.5,1923.4,4.97064042]
[1688265825268,0.31197,1923.5,1923.4,5.28262042]
[1688265825666,0.31197,1923.5,1923.4,5.28719179]
[1688265829171,0.77991,1923.6,1923.4,5.28719179]
[1688265829370,0.77991,1923.6,1923.5,4.684]
[1688265829571,0.77991,1923.6,1923.5,4.99597]
[1688265829778,0.77991,1923.6,1923.5,5.00053247]
[1688265832074,1.06662635,1923.6,1923.5,5.00053247]
[1688265838897,1.93522169,1923.6,1923.5,5.00053247]
[1688265839692,1.93522169,1923.6,1923.5,5.28717289]
[1688265840189,1.93522169,1923.6,1923.5,5.00053247]
[1688265840685,1.93522169,1923.6,1923.5,5.28717289]
[1688265840891,1.93522169,1923.6,1923.5,5.00053247]
[1688265842485,1.93522169,1923.6,1923.5,5.28717289]
[1688265843491,1.93522169,1923.6,1923.5,5.00053247]
[1688265845686,1.64850534,1923.6,1923.5,5.28717289]
[1688265847696,1.93522169,1923.6,1923.5,5.00053247]
[1688265850191,0.86859534,1923.6,1923.5,5.28717289]
[1688265850394,1.18054534,1923.6,1923.5,5.28717289]
[1688265850994,1.46726169,1923.6,1923.5,5.28717289]
[1688265851395,1.46726169,1923.6,1923.5,5.00053247]
[1688265851596,1.18054534,1923.6,1923.5,5.28717289]
[1688265852891,1.46726169,1923.6,1923.5,5.28717289]
[1688265853286,1.46726169,1923.6,1923.5,5.00053247]
[1688265854095,1.46726169,1923.6,1923.5,5.28717289]
[1688265854600,1.46726169,1923.6,1923.5,0.31653247]
[1688265862302,6.12126169,1923.6,1923.5,0.31653247]
[1688265863005,6.12126169,1923.6,1923.2,0.00779869]
[1688265863207,8.2098,1923.3,1923.2,0.00779869]
[1688265863395,8.49651635,1923.3,1923.2,0.00779869]
[1688265863600,9.51599888,1923.3,1923.2,0.00779869]
[1688265863907,9.51599888,1923.3,1923.2,0.01203931]
[1688265864803,9.51599888,1923.3,1923.2,0.00779869]
[1688265865704,9.51599888,1923.3,1923.2,0.01203931]
[1688265866204,14.18399888,1923.3,1922.8,9.9047]
[1688265866409,5.00206,1922.9,1922.8,0.31208]
[1688265866603,5.85626047,1922.9,1922.8,0.31208]
[1688265866908,5.99545413,1922.9,1922.8,0.31208]
[1688265868205,5.99545413,1922.9,1922.7,0.78802092]
[1688265870603,5.99545413,1922.9,1922.8,0.00411316]
[1688265870808,5.99545413,1922.9,1922.8,0.31619316]
[1688265872213,5.99545413,1922.9,1922.8,0.00411316]
[1688265873016,10.83595413,1922.9,1922.8,0.00411316]
[1688265875809,11.24316727,1922.9,1922.8,0.00411316]
[1688265885815,5.79918315,1922.9,1922.8,0.29075358]
[1688265886018,5.75972294,1922.9,1922.8,0.60283358]
[1688265886317,5.79572294,1922.9,1922.8,0.00411316]
[1688265891922,5.46500659,1922.9,1922.8,0.60283358]
[1688265892122,0.81900659,1922.9,1922.8,0.60283358]
[1688265893928,1.10572294,1922.9,1922.8,0.60283358]
[1688265895531,1.10572294,1922.9,1922.8,0.31619316]
[1688265896120,1.27623086,1922.9,1922.8,0.31619316]
[1688265901725,5.92223086,1922.9,1922.8,0.31619316]
[1688265905025,5.92223086,1922.9,1922.8,0.60283358]
[1688265905236,5.92223086,1922.9,1922.8,0.31619316]
[1688265909831,5.92223086,1922.9,1922.8,0.00411316]
[1688265910435,5.92223086,1922.9,1922.8,0.31619316]
[1688265911228,1.27623086,1922.9,1922.8,0.31619316]
[1688265911431,5.96623086,1922.9,1922.8,0.31619316]
[1688265915340,5.83215909,1922.9,1922.8,0.31619316]
[1688265921447,5.83215909,1922.9,1922.8,0.00411316]
[1688265921832,5.797133,1922.9,1922.8,0.00411316]
[1688265926645,5.797133,1922.9,1922.8,0.31619316]
[1688265927146,5.797133,1922.9,1922.8,0.00411316]
[1688265929155,5.797133,1922.9,1922.8,0.31619316]
[1688265931142,5.797133,1922.9,1922.8,0.00411316]
[1688265931348,5.797133,1922.9,1922.8,0.31619316]
[1688265931549,1.107133,1922.9,1922.8,0.31619316]
[1688265931847,1.107133,1922.9,1922.8,0.60283358]
[1688265932250,5.797133,1922.9,1922.8,0.00411316]
[1688265932544,5.797133,1922.9,1922.8,0.31619316]
[1688265932745,5.69598949,1922.9,1922.8,0.31619316]
[1688265934941,5.69598949,1922.9,1922.8,0.60283358]
[1688265936447,5.69598949,1922.9,1922.8,0.31619316]
[1688265941250,5.69598949,1922.9,1922.8,0.00411316]
[1688265941749,10.59518949,1922.9,1922.8,0.00411316]
[1688265959467,0.71927314,1922.9,1922.8,0.29075358]
[1688265959676,0.71927314,1922.9,1922.8,0.60283358]
[1688265959860,0.85346241,1922.9,1922.8,0.60283358]
[1688265966167,1.14017876,1922.9,1922.8,0.60283358]
[1688265966757,0.85346241,1922.9,1922.8,0.60283358]
[1688265967459,1.14017876,1922.9,1922.8,0.60283358]
[1688265968570,0.85346241,1922.9,1922.8,0.60283358]
[1688265968966,1.14017876,1922.9,1922.8,0.60283358]
[1688265969774,0.85346241,1922.9,1922.8,0.60283358]
[1688265971370,1.14017876,1922.9,1922.8,0.60283358]
[1688265974580,0.85346241,1922.9,1922.8,0.60283358]
[1688265976971,1.14017876,1922.9,1922.8,0.60283358]
[1688265977374,0.85346241,1922.9,1922.8,0.60283358]
[1688265977573,0.54140241,1922.9,1922.8,0.60283358]
[1688265977765,0.64626903,1922.9,1922.8,5.28483358]
[1688265984077,0.23905589,1922.9,1922.8,5.28483358]
[1688265995183,3.2078,1923.4,1922.8,10.28483358]
[1688265995384,3.51979,1923.4,1923.3,4.656]
[1688265995682,3.51979,1923.4,1923.3,4.97351578]
[1688265995890,3.51979,1923.4,1923.3,5.2601562]
[1688265996092,0.31199,1923.4,1923.3,5.2601562]
[1688265997082,0.73638635,1923.4,1923.3,5.2601562]
[1688265997294,0.31199,1923.4,1923.3,5.2601562]
[1688266002191,0.31199,1923.4,1923.3,5.2881562]
[1688266002797,0.49682182,1923.4,1923.3,5.2881562]
[1688266003191,0.18483182,1923.4,1923.3,5.2881562]
[1688266003800,0.18483182,1923.4,1923.3,5.2691562]
[1688266004191,0.35667585,1923.4,1923.3,5.2691562]
[1688266011803,0.35667585,1923.4,1923.3,10.2691562]
[1688266011804,0.52850709,1923.4,1923.3,10.2691562]
[1688266012007,10.2292,1923.8,1923.5,5.0]
[1688266012206,10.2292,1923.8,1923.7,4.682]
[1688266012404,10.2292,1923.8,1923.7,4.99393]
[1688266012804,10.2292,1923.8,1923.7,4.99941444]
[1688266014001,10.6444918,1923.8,1923.7,4.99941444]
[1688266014401,10.2292,1923.8,1923.7,4.99941444]
[1688266017605,0.00776326,1923.9,1923.7,4.99941444]
[1688266017805,0.00776326,1923.9,1923.8,4.665]
[1688266018010,0.00776326,1923.9,1923.8,5.26356042]
[1688266018708,0.31967326,1923.9,1923.8,5.28603907]
[1688266018908,0.60638961,1923.9,1923.8,5.28603907]
[1688266019814,0.8979697,1923.9,1923.8,5.28603907]
[1688266020013,1.18468605,1923.9,1923.8,5.28603907]
[1688266021210,0.8979697,1923.9,1923.8,5.28603907]
[1688266026316,0.8979697,1923.9,1923.8,5.28803907]
[1688266029626,1.18468605,1923.9,1923.8,5.00139865]
[1688266029923,1.18468605,1923.9,1923.8,0.31739865]
[1688266032128,1.18468605,1923.9,1923.8,4.99939865]
[1688266033026,1.18468605,1923.9,1923.8,5.28603907]
[1688266034227,1.18468605,1923.9,1923.8,4.99939865]
[1688266034436,1.18468605,1923.9,1923.8,5.28603907]
[1688266036531,0.8979697,1923.9,1923.8,5.28603907]
[1688266036731,1.18468605,1923.9,1923.8,5.28603907]
[1688266038443,0.8979697,1923.9,1923.8,5.28603907]
[1688266040740,1.18468605,1923.9,1923.8,5.28603907]
[1688266041542,0.8979697,1923.9,1923.8,5.28603907]
[1688266043341,0.8979697,1923.9,1923.8,8.49383907]
[1688266046542,0.8979697,1923.9,1923.8,5.28603907]
[1688266047044,1.18468605,1923.9,1923.8,4.99939865]
[1688266049155,1.18468605,1923.9,1923.8,5.28603907]
[1688266050750,1.18468605,1923.9,1923.8,4.99939865]
[1688266051342,0.5860597,1923.9,1923.8,13.18383907]
[1688266059050,0.8979597,1923.9,1923.8,13.18383907]
[1688266062053,0.8979597,1923.9,1923.8,8.49383907]
[1688266066163,0.5860597,1923.9,1923.8,8.49383907]
[1688266082069,0.87277605,1923.9,1923.8,8.49383907]
[1688266082365,0.5860597,1923.9,1923.8,8.49383907]
[1688266102197,0.5860597,1923.9,1923.8,13.18383907]
[1688266125411,0.87277605,1923.9,1923.8,13.18383907]
[1688266125615,0.5860597,1923.9,1923.8,13.18383907]
[1688266125817,1.18467605,1923.9,1923.8,4.99939865]
[1688266138026,1.18467605,1923.9,1923.8,5.28603907]
[1688266138431,1.18467605,1923.9,1923.8,4.99939865]
[1688266142827,1.18467605,1923.9,1923.8,5.28603907]
[1688266143027,1.18467605,1923.9,1923.8,4.99939865]
[1688266146729,1.18467605,1923.9,1923.8,4.98239865]
[1688266147230,5.87467605,1923.9,1923.8,0.00547865]
[1688266147720,5.62885548,1923.9,1923.6,0.93577]
[1688266147926,4.654,1923.7,1923.6,0.93577]
[1688266148135,5.58512765,1923.7,1923.6,0.93577]
[1688266148733,5.58512765,1923.7,1923.6,0.94106209]
[1688266148931,5.58512765,1923.7,1923.6,0.00529209]
[1688266149131,5.48193553,1923.7,1923.6,0.00529209]
[1688266149333,15.25453553,1923.7,1923.6,0.00529209]
[1688266149534,0.56748412,1923.6,1923.4,0.77987]
[1688266149832,8.49648635,1923.5,1923.4,0.77987]
[1688266150028,8.68513036,1923.5,1923.4,0.77987]
[1688266151228,5.47733036,1923.5,1923.4,0.77987]
[1688266157745,5.47733036,1923.5,1923.4,0.78497014]
[1688266160439,5.89202164,1923.5,1923.4,0.78497014]
[1688266175137,5.89202164,1923.5,1923.4,0.00510014]
[1688266175444,9.09982164,1923.5,1923.4,0.00510014]
[1688266175639,19.32702164,1923.5,1923.4,0.00510014]
[1688266175944,4.667,1923.3,1923.0,0.31204]
[1688266176140,5.00203,1923.1,1923.0,0.31204]
[1688266176843,5.00203,1923.1,1923.0,0.31717607]
[1688266178534,5.00203,1923.1,1923.0,0.00513607]
[1688266180141,5.00203,1923.1,1923.0,0.09445339]
[1688266180342,5.00203,1923.1,1923.0,0.40650339]
[1688266180644,5.00203,1923.1,1923.0,0.09445339]
[1688266180850,5.00203,1923.1,1923.0,0.40650339]
[1688266189061,4.69,1923.1,1923.0,0.69314381]
[1688266192053,5.42717951,1923.2,1923.0,0.69314381]
[1688266192255,5.71389586,1923.2,1923.0,0.69314381]
[1688266192450,5.71389586,1923.2,1923.0,5.59094381]
[1688266193751,5.71389586,1923.2,1923.0,5.30430339]
[1688266197155,4.69,1923.1,1923.0,5.30430339]
[1688266197360,5.00203,1923.1,1923.0,5.30430339]
[1688266198757,0.31203,1923.1,1923.0,5.59094381]
[1688266200059,6.18196586,1923.2,1923.0,5.59094381]
[1688266200265,5.89524951,1923.2,1923.1,3.2078]
[1688266200463,5.89524951,1923.2,1923.1,3.51983]
[1688266200865,5.89524951,1923.2,1923.1,3.52495709]
[1688266201562,6.18196586,1923.2,1923.1,3.52495709]
[1688266201969,6.18196586,1923.2,1923.1,0.31715709]
[1688266202472,6.18196586,1923.2,1923.1,3.52495709]
[1688266202473,5.11515951,1923.2,1923.1,3.52495709]
[1688266202862,5.42717951,1923.2,1923.1,3.52495709]
[1688266203772,5.11515951,1923.2,1923.1,3.52495709]
[1688266205472,5.42717951,1923.2,1923.1,3.52495709]
[1688266205767,5.71389586,1923.2,1923.1,3.52495709]
[1688266208471,4.646,1923.4,1923.1,8.28495709]
[1688266208775,3.13497681,1923.7,1923.3,7.8728]
[1688266208776,5.00196,1923.6,1923.3,7.8728]
[1688266209076,5.00196,1923.6,1923.5,3.2078]
[1688266209266,5.28867635,1923.6,1923.5,3.51977]
[1688266210169,5.69492723,1923.6,1923.5,3.51977]
[1688266210360,5.69492723,1923.6,1923.5,3.80641042]
[1688266212774,5.69492723,1923.6,1923.5,0.59861042]
[1688266213968,5.69492723,1923.6,1923.5,0.31197]
[1688266214181,5.69492723,1923.6,1923.5,0.59861042]
[1688266215372,5.69492723,1923.6,1923.5,0.31197]
[1688266215776,5.69492723,1923.6,1923.5,0.31706117]
[1688266216480,5.97058935,1923.6,1923.5,0.31706117]
[1688266220277,5.97058935,1923.6,1923.5,0.60370159]
[1688266221379,0.681913,1923.6,1923.5,8.49350159]
[1688266222081,0.681913,1923.6,1923.5,8.49550159]
[1688266222382,0.681913,1923.6,1923.5,5.28770159]
[1688266222583,0.993863,1923.6,1923.5,5.28770159]
[1688266224371,0.993863,1923.6,1923.5,8.49550159]
[1688266225785,5.97057935,1923.6,1923.5,3.81150159]
[1688266225979,5.97057935,1923.6,1923.5,0.31706117]
[1688266227982,5.97057935,1923.6,1923.5,0.00509117]
[1688266228180,9.17837935,1923.6,1923.5,0.00509117]
[1688266228382,14.06017935,1923.6,1923.5,0.00509117]
[1688266228782,14.06017935,1923.6,1923.3,0.77997]
[1688266228985,4.95798,1923.4,1923.3,0.77997]
[1688266229383,5.38261996,1923.4,1923.3,0.77997]
[1688266230890,5.38261996,1923.4,1923.3,0.78507913]
[1688266233393,5.38261996,1923.4,1923.3,0.00510913]
[1688266234195,8.59041996,1923.4,1923.3,0.00510913]
[1688266234394,8.59041996,1923.4,1923.3,0.31710913]
[1688266236996,5.38261996,1923.4,1923.3,0.31710913]
[1688266237501,5.80185144,1923.4,1923.3,0.31710913]
[1688266241000,5.85186293,1923.4,1923.3,0.31710913]
[1688266242795,9.05966293,1923.4,1923.3,0.31710913]
[1688266243500,5.85186293,1923.4,1923.3,0.31710913]
[1688266246402,9.05966293,1923.4,1923.3,0.31710913]
[1688266250904,5.85186293,1923.4,1923.3,0.31710913]
[1688266261212,9.05966293,1923.4,1923.3,0.31710913]
[1688266261413,5.85186293,1923.4,1923.3,0.31710913]
[1688266262504,9.05966293,1923.4,1923.3,0.31710913]
[1688266263617,9.05966293,1923.4,1923.3,0.00510913]
[1688266265610,9.05966293,1923.4,1923.3,0.31710913]
[1688266273616,5.85186293,1923.4,1923.3,0.31710913]
[1688266277315,9.05966293,1923.4,1923.3,0.31710913]
[1688266280425,9.05966293,1923.4,1923.2,10.79572]
[1688266280726,5.56948412,1923.3,1923.2,10.79572]
[1688266280920,5.75399386,1923.3,1923.2,10.79572]
[1688266288831,5.75399386,1923.3,1923.2,10.80164728]
[1688266294629,5.75399386,1923.3,1923.2,11.0882877]
[1688266294834,5.18650974,1923.3,1923.2,11.0882877]
[1688266298030,5.18650974,1923.3,1923.2,10.80164728]
[1688266303134,5.18650974,1923.3,1923.2,11.0882877]
[1688266303940,5.18650974,1923.3,1923.2,10.80164728]
[1688266305940,5.18650974,1923.3,1923.2,10.02162728]
[1688266306137,9.85350974,1923.3,1923.2,4.88832728]
[1688266306337,9.85350974,1923.3,1922.8,3.51986]
[1688266306642,0.31205,1923.0,1922.9,10.48584934]
[1688266306848,5.25276635,1923.0,1922.9,10.17951575]
[1688266307038,5.82025047,1923.0,1922.9,10.49158575]
[1688266308045,5.82025047,1923.0,1922.9,0.41108575]
[1688266320461,6.24465664,1923.0,1922.9,0.41108575]
[1688266321160,6.24465664,1923.0,1922.9,0.48430008]
[1688266333765,6.24465664,1923.0,1922.9,0.17223008]
[1688266347876,6.24465664,1923.0,1922.9,0.48430008]
[1688266348472,6.24465664,1923.0,1922.9,0.7709405]
[1688266348976,6.24465664,1923.0,1922.9,0.48430008]
[1688266374390,6.24465664,1923.0,1922.9,0.17223008]
[1688266375393,10.93465664,1923.0,1922.3,0.31214]
[1688266375689,0.31213,1922.5,1922.4,0.67641819]
[1688266375890,5.85633047,1922.5,1922.4,0.36939511]
[1688266376987,5.85633047,1922.5,1922.4,0.68154511]
[1688266381496,6.79317179,1922.5,1922.4,0.68154511]
[1688266385698,6.79317179,1922.5,1922.4,0.36939511]
[1688266387997,7.20553498,1922.5,1922.4,0.36939511]
[1688266396031,7.20553498,1922.5,1922.3,0.00780254]
[1688266396214,17.6706,1922.4,1922.3,0.00780254]
[1688266396525,0.31218,1922.2,1921.9,10.40961]
[1688266396716,8.21001,1922.0,1921.9,10.40961]
[1688266396917,9.14685132,1922.0,1921.9,5.63401]
[1688266397217,10.00105179,1922.0,1921.9,5.63401]
[1688266397424,9.06421047,1922.0,1921.9,5.63401]
[1688266398518,10.00124482,1922.0,1921.9,5.63401]
[1688266399010,14.83444482,1922.0,1921.9,5.63401]
[1688266399416,13.89741047,1922.0,1921.9,5.63401]
[1688266400224,13.89741047,1922.0,1921.9,0.78051]
[1688266400724,9.06421047,1922.0,1921.9,0.78051]
[1688266401524,14.17221047,1922.0,1921.9,0.78051]
[1688266403929,14.17221047,1922.0,1921.9,0.78548495]
[1688266405535,14.57909235,1922.0,1921.9,0.78548495]
[1688266406036,14.57909235,1922.0,1921.9,0.00497495]
[1688266406829,15.51617382,1922.0,1921.9,0.00497495]
[1688266407035,15.51617382,1922.0,1921.8,0.00780457]
[1688266407332,5.00223,1921.9,1921.8,0.00780457]
[1688266407736,5.00223,1921.9,1921.8,0.74562306]
[1688266407928,5.00223,1921.9,1921.8,0.75060705]
[1688266409336,5.93937107,1921.9,1921.8,0.75060705]
[1688266409523,5.00223,1921.9,1921.8,0.75060705]
[1688266413836,5.93943561,1921.9,1921.8,0.75060705]
[1688266418935,10.58243561,1921.9,1921.8,0.87532853]
[1688266419239,10.58243561,1921.9,1921.5,4.9171]
[1688266419432,12.5648,1921.6,1921.4,5.13451]
[1688266419741,5.25300635,1921.5,1921.3,6.32928]
[1688266419928,8.73359412,1921.4,1921.3,6.32928]
[1688266420332,8.73359412,1921.4,1921.3,5.2882]
[1688266421642,8.73359412,1921.4,1921.2,0.00780681]
[1688266421836,5.00233,1921.3,1921.2,0.00780681]
[1688266422040,5.28904635,1921.3,1921.2,0.00780681]
[1688266423633,5.28904635,1921.3,1921.2,0.32014681]
[1688266424936,10.27824635,1921.3,1921.2,0.32014681]
[1688266426141,9.96591635,1921.3,1921.2,0.00780681]
[1688266426535,9.96591635,1921.3,1921.2,0.61899186]
[1688266427041,9.96591635,1921.3,1921.2,0.62383846]
[1688266445862,4.69,1921.3,1921.2,0.91047888]
[1688266446055,4.654,1921.3,1921.2,1.01447888]
[1688266448575,4.94071635,1921.3,1921.2,1.01447888]
[1688266449372,4.94071635,1921.3,1921.2,0.72783846]
[1688266451872,4.97671635,1921.3,1921.2,0.62383846]
[1688266452671,9.96011635,1921.3,1921.2,0.62383846]
[1688266455377,4.69,1921.3,1921.2,0.91047888]
[1688266456280,5.00233,1921.3,1921.2,1.22281888]
[1688266460579,5.28904635,1921.3,1921.2,1.22281888]
[1688266460978,5.28904635,1921.3,1921.2,0.93617846]
[1688266464677,8.49684635,1921.3,1921.2,0.93617846]
[1688266468082,5.28904635,1921.3,1921.2,0.93617846]
[1688266468878,8.49684635,1921.3,1921.2,0.93617846]
[1688266469481,8.49684635,1921.3,1921.2,1.22281888]
[1688266471384,5.28904635,1921.3,1921.2,1.22281888]
[1688266472281,5.28904635,1921.3,1921.2,0.93617846]
[1688266472585,8.49684635,1921.3,1921.2,0.93617846]
[1688266472883,8.49684635,1921.3,1921.2,0.62383846]
[1688266473776,8.49684635,1921.3,1921.2,0.93617846]
[1688266480785,5.28904635,1921.3,1921.2,0.93617846]
[1688266480984,5.00233,1921.3,1921.2,1.22281888]
[1688266482589,5.28904635,1921.3,1921.2,1.22281888]
[1688266483091,5.28904635,1921.3,1921.2,0.93617846]
[1688266484688,4.69,1921.3,1921.2,4.43061888]
[1688266485192,5.0643314,1921.4,1921.2,9.08661888]
[1688266485392,4.654,1921.4,1921.2,9.08661888]
[1688266486085,4.96631,1921.4,1921.2,9.08661888]
[1688266488483,4.69,1921.3,1921.2,4.43061888]
[1688266488684,5.28904635,1921.3,1921.2,4.43061888]
[1688266489199,5.28904635,1921.3,1921.2,0.93617846]
[1688266495800,8.49684635,1921.3,1921.2,0.93617846]
[1688266496000,8.49684635,1921.3,1921.2,0.62383846]
[1688266501512,8.91083184,1921.3,1921.2,0.62383846]
[1688266505811,8.91083184,1921.3,1920.7,11.12377]
[1688266505812,13.57883184,1921.3,1920.7,11.12377]
[1688266506013,4.646,1920.8,1920.7,5.0764]
[1688266506312,5.81261047,1920.8,1920.6,0.78097]
[1688266506515,4.654,1920.7,1920.6,0.78097]
[1688266506711,4.96642,1920.7,1920.6,0.78097]
[1688266508315,4.96642,1920.7,1920.5,10.55052986]
[1688266508316,8.17422,1920.7,1920.5,6.03892986]
[1688266508515,5.50820047,1920.6,1920.5,0.78892986]
[1688266508706,5.82064047,1920.6,1920.5,0.78892986]
[1688266509112,10.66534047,1920.6,1920.5,0.78892986]
[1688266509713,10.66534047,1920.6,1920.5,0.00780986]
[1688266512120,10.66534047,1920.6,1920.5,0.32025986]
[1688266513517,10.66534047,1920.6,1920.5,1.41035469]
[1688266514011,10.66534047,1920.6,1920.5,1.41493733]
[1688266514519,4.69,1920.4,1920.2,0.78113]
[1688266514721,14.23618047,1920.3,1920.2,0.78113]
[1688266516728,14.23618047,1920.3,1920.2,0.8157894]
[1688266518815,14.23618047,1920.3,1920.2,1.1282894]
[1688266519216,11.02838047,1920.3,1920.2,1.1282894]
[1688266520015,11.02838047,1920.3,1920.2,1.41492982]
[1688266520316,4.69,1920.3,1920.2,1.41492982]
[1688266520517,5.00248,1920.3,1920.2,1.41492982]
[1688266520718,5.28919635,1920.3,1920.2,1.41492982]
[1688266521723,5.28919635,1920.3,1920.2,1.1282894]
[1688266522121,5.69938776,1920.3,1920.2,1.1282894]
[1688266523026,5.69938776,1920.3,1920.2,1.13272297]
[1688266525431,8.90718776,1920.3,1920.2,0.82022297]
[1688266525627,8.90718776,1920.3,1920.1,0.00524122]
[1688266525926,5.21348412,1920.2,1920.1,0.00524122]
[1688266526124,5.52598412,1920.2,1920.1,0.00524122]
[1688266526520,15.95698412,1920.2,1920.1,0.00524122]
[1688266530328,25.88670047,1920.2,1919.7,5.2539]
[1688266530532,4.646,1919.8,1919.6,0.78139]
[1688266530733,5.57006412,1919.7,1919.6,5.58309]
[1688266531028,5.85678047,1919.7,1919.6,5.58309]
[1688266531220,5.85678047,1919.7,1919.6,4.8017]
[1688266531423,10.79948047,1919.7,1919.6,4.8017]
[1688266531826,14.00728047,1919.7,1919.6,4.8017]
[1688266532718,14.00728047,1919.7,1919.5,0.31261]
[1688266532932,4.69,1919.6,1919.5,0.31261]
[1688266533126,5.0026,1919.6,1919.5,0.31261]
[1688266533328,5.0026,1919.6,1919.5,1.3691249]
[1688266534019,5.0026,1919.6,1919.5,1.37416802]
[1688266535224,5.0026,1919.6,1919.5,1.33469431]
[1688266536329,5.0026,1919.6,1919.5,1.64730431]
[1688266539531,5.0026,1919.6,1919.5,1.93394473]
[1688266540236,5.42711067,1919.6,1919.5,1.93394473]
[1688266540444,5.42711067,1919.6,1919.5,1.64730431]
[1688266540731,5.42711067,1919.6,1919.5,1.93394473]
[1688266541039,4.69,1919.6,1919.5,1.93394473]
[1688266541228,4.69,1919.7,1919.5,1.93394473]
[1688266541430,4.69,1919.7,1919.6,3.2078]
[1688266541628,4.69,1919.7,1919.6,3.5204]
[1688266542032,4.69,1919.7,1919.6,3.52543401]
[1688266542536,4.69,1919.8,1919.6,8.19043401]
[1688266542832,0.93755,1920.2,1919.8,0.31257]
[1688266542833,4.69,1920.2,1919.8,0.31257]
[1688266543032,4.69,1920.2,1920.0,0.31253]
[1688266543339,4.69,1920.2,1920.1,0.59916042]
[1688266543538,5.28921635,1920.2,1920.1,0.31252]
[1688266544041,5.28921635,1920.2,1920.1,0.31731733]
[1688266545533,10.99684386,1920.2,1920.1,0.31731733]
[1688266546629,10.99684386,1920.2,1920.1,0.83979294]
[1688266547834,10.99684386,1920.2,1920.1,0.52727294]
[1688266549037,10.99684386,1920.2,1920.1,0.66401799]
[1688266550843,10.99684386,1920.2,1920.1,1.26317841]
[1688266551037,10.71012751,1920.2,1920.1,1.26317841]
[1688266552646,10.39762751,1920.2,1920.1,1.26317841]
[1688266553345,10.71012751,1920.2,1920.1,1.26317841]
[1688266554142,10.99684386,1920.2,1920.1,1.26317841]
[1688266554650,10.99684386,1920.2,1920.1,0.97653799]
[1688266555746,9.9772,1920.2,1920.1,1.26317841]
[1688266556046,4.69,1920.2,1920.1,1.26317841]
[1688266556248,5.0025,1920.2,1920.1,1.26317841]
[1688266557147,5.0025,1920.2,1920.1,4.47097841]
[1688266557836,4.69,1920.2,1920.1,4.47097841]
[1688266558341,4.69,1920.2,1920.1,1.26317841]
[1688266558543,4.69,1920.2,1920.1,4.47097841]
[1688266559353,5.0025,1920.2,1920.1,4.47097841]
[1688266559647,5.0025,1920.2,1920.1,1.26317841]
[1688266560449,5.0025,1920.2,1920.1,4.47097841]
[1688266564045,4.69,1920.2,1920.1,4.47097841]
[1688266565245,5.34597357,1920.3,1920.1,9.13597841]
[1688266567853,5.65846357,1920.3,1920.1,9.13597841]
[1688266568050,5.65846357,1920.3,1920.1,9.12697841]
[1688266570856,5.34597357,1920.3,1920.1,9.12697841]
[1688266573252,4.66181148,1920.4,1920.1,9.12697841]
[1688266573454,0.00781148,1920.4,1920.3,7.8638]
[1688266573659,0.00781148,1920.4,1920.3,8.46292042]
[1688266573854,0.10080126,1920.4,1920.3,13.12192042]
[1688266574158,9.5425,1920.9,1920.3,13.12669955]
[1688266574456,9.5425,1920.9,1920.7,4.99442]
[1688266574659,9.5425,1920.9,1920.8,0.28664042]
[1688266574955,5.6102,1921.0,1920.8,3.80684042]
[1688266574956,0.00780904,1921.0,1920.8,3.80684042]
[1688266575173,0.00780904,1921.0,1920.9,4.684]
[1688266575464,0.00780904,1921.0,1920.9,4.99639]
[1688266576046,0.00780904,1921.0,1920.9,5.00111456]
[1688266576558,0.29239531,1921.0,1920.9,5.00111456]
[1688266577564,0.24770939,1921.0,1920.9,5.00111456]
[1688266577858,4.8885,1921.3,1920.9,5.00111456]
[1688266578055,5.29566687,1921.3,1921.2,4.99434]
[1688266578256,5.29566687,1921.3,1921.2,5.28098042]
[1688266578959,5.29566687,1921.3,1921.2,5.28567771]
[1688266579353,5.29566687,1921.3,1921.2,5.39167771]
[1688266579555,4.8885,1921.3,1921.2,5.39167771]
[1688266579761,0.00780742,1921.4,1921.2,5.39167771]
[1688266579960,0.00780742,1921.4,1921.3,7.8918]
[1688266580260,0.00780742,1921.4,1921.3,8.20412]
[1688266581063,0.00780742,1921.4,1921.3,8.2088082]
[1688266581364,0.32010742,1921.4,1921.3,8.2088082]
[1688266581563,0.32010742,1921.4,1921.3,5.0010082]
[1688266582063,5.01010742,1921.4,1921.3,0.3170082]
[1688266582253,5.29682377,1921.4,1921.3,0.3170082]
[1688266583867,4.98452377,1921.4,1921.3,0.3170082]
[1688266585063,5.48381544,1921.4,1921.3,0.3170082]
[1688266585260,5.79612544,1921.4,1921.3,0.3170082]
[1688266586659,5.79612544,1921.4,1921.3,8.2e-06]
[1688266586865,0.56748412,1921.3,1921.2,0.31234]
[1688266587053,5.53380412,1921.3,1921.2,0.31234]
[1688266587259,5.75462671,1921.3,1921.2,0.78081]
[1688266588761,8.96242671,1921.3,1921.0,0.93702]
[1688266588967,4.69,1921.1,1920.9,0.78095]
[1688266589167,4.69,1921.0,1920.9,0.78095]
[1688266589367,5.00237,1921.0,1920.9,0.78095]
[1688266589568,5.28908635,1921.0,1920.9,0.78095]
[1688266590267,5.28908635,1921.0,1920.9,1.06759042]